fUSD/lending_fUSD_20260111
["ID","MTS","AMOUNT","RATE_DAILY","PERIOD"]
[401319715,1768133441532,-263.23700987,0.000179,2]
[401319717,1768133441542,-263.23700987,0.000179,2]
[401319719,1768133441551,-263.23700987,0.000179,2]
[401319721,1768133441564,-704.43607533,0.000179,2]
[401319723,1768133441574,-1000.0,0.000179,2]
[401319725,1768133441583,-1542.85131516,0.000179,2]
[401319727,1768133441593,-1141.06272098,0.000179,2]
[401319729,1768133441603,-341.09361904,0.000179,3]
[401319731,1768133441612,-8825.0,0.000179,2]
[401319733,1768133441622,-168.0,0.00017909,2]
[401319735,1768133441633,-169.8785813,0.00017998,2]
[401319737,1768133441643,-584624.9661835,0.00017998,2]
[401319739,1768133441652,-27223.946394,0.00017998,2]
[401319741,1768133441662,-27734.9220967,0.00017998,2]
[401319743,1768133441672,-3928.1435398,0.00017998,2]
[401319745,1768133441682,-3335.6673604,0.00017998,2]
[401319747,1768133441691,-55116.973575,0.00017998,2]
[401319749,1768133441701,-238.9213252,0.00017998,2]
[401319751,1768133441712,-166.9455236,0.00017999,2]
[401319753,1768133441721,-300.0,0.00017999,2]
[401319755,1768133441730,-300.0,0.00017999,2]
[401319757,1768133441739,-300.0,0.00017999,2]
[401319759,1768133441748,-300.0,0.00017999,2]
[401319761,1768133441758,-300.0,0.00017999,2]
[401319763,1768133441767,-548.49326873,0.00017999,2]
[401319765,1768133441775,-2386747.31534364,0.00018,2]
[401319771,1768133441818,-366.77809616,0.00018,2]
[401319773,1768133441830,-8305.66531967,0.00018,2]
[401319987,1768133443883,-1613.6,0.00018,2]
[401320107,1768133445118,-1200.0,0.00018,2]
[401320111,1768133445140,-326.08871556,0.00018,2]
[401320216,1768133446210,-22416.27630679,0.00018,2]
[401320218,1768133446222,-814.90723706,0.00018,2]
[401320224,1768133446267,-1568.3918508,0.00018,2]
[401320226,1768133446278,-712.50608253,0.00018,2]
[401320247,1768133446482,-531.51952131,0.00018,2]
[401320732,1768134193019,-166.66,0.00015077,2]
[401320733,1768134193044,-99.07979004,0.00015394,2]
[401320734,1768134253413,225.27,0.00027397,120]
[401320737,1768134421290,-67.58020996,0.00015394,2]
[401320739,1768134432921,-195.0,0.00015553,2]
[401320740,1768134432944,-242.58425882,0.00015586,2]
[401320741,1768134435683,-173.19690873,0.00015586,2]
[401320744,1768134447905,-338.59,0.00015563,2]
[401320745,1768134449828,-217.12,0.00015563,2]
[401320746,1768134449852,-32.88,0.00015586,2]
[401320747,1768134452421,864.18571892,0.00015366,2]
[401320758,1768134505339,507.22104814,0.000154,2]
[401320829,1768134577711,1000.0,0.00015485,2]
[401320859,1768134635993,-80.36883245,0.00015586,2]
[401320860,1768134636003,-166.66,0.00015711,2]
[401320861,1768134636012,-192.28928436,0.00015807,2]
[401320869,1768134637568,-2042.80699116,0.00015807,2]
[401320870,1768134637577,-1200.0,0.00015999,2]
[401320871,1768134637586,-239.83139531,0.00015999,2]
[401321034,1768134639557,-60.16860469,0.00015999,2]
[401321036,1768134639567,-76185.55382351,0.00016,2]
[401321038,1768134639576,-166.66,0.00016029,2]
[401321040,1768134639586,-150.0,0.000162,2]
[401321042,1768134639595,-5000.00607411,0.000162,5]
[401321044,1768134639604,-157.59274312,0.00016279,2]
[401321046,1768134639613,-157.59274312,0.00016279,2]
[401321048,1768134639622,-200.0,0.0001634,2]
[401321050,1768134639631,-166.66,0.00016346,2]
[401321052,1768134639640,-158.81106317,0.00016377,2]
[401321054,1768134639649,-201.26356055,0.00016377,2]
[401321056,1768134639658,-500.0,0.00016377,2]
[401321058,1768134639667,-158.81106317,0.00016377,2]
[401321060,1768134639676,-150.0,0.00016378,2]
[401321062,1768134639686,-2500.0,0.00016378,2]
[401321064,1768134639695,-1000000.0,0.00016378,2]
[401321066,1768134639704,-191.07861083,0.00016379,2]
[401321068,1768134639713,-1886.37472565,0.00016379,2]
[401321070,1768134639722,-389.48512062,0.00016438,2]
[401321072,1768134639732,-9917.94,0.00016438,2]
[401321074,1768134639741,-888.0,0.00016438,2]
[401321076,1768134639750,-800.0,0.00016438,2]
[401321078,1768134639759,-151.0,0.00016468,2]
[401321080,1768134639768,-151.0,0.00016468,2]
[401321082,1768134639777,-235.01688217,0.00016468,2]
[401321084,1768134639785,-202.27919226,0.00016468,2]
[401321086,1768134639794,-9999.99,0.00016476,2]
[401321088,1768134639803,-1467.66845712,0.00016477,5]
[401321090,1768134639812,-535.89319473,0.00016477,2]
[401321092,1768134639821,-500.0,0.00016477,2]
[401321094,1768134639830,-519.66992392,0.00016477,2]
[401321096,1768134639839,-500.0,0.00016477,2]
[401321098,1768134639847,-500.0,0.00016477,2]
[401321100,1768134639856,-500.0,0.00016477,2]
[401321102,1768134639866,-1182.704,0.00016477,2]
[401321104,1768134639875,-500.0,0.00016477,2]
[401321106,1768134639883,-512.90817352,0.00016477,2]
[401321108,1768134639894,-165.213,0.00016477,2]
[401321110,1768134639903,-1000.0,0.00016479,2]
[401321112,1768134639913,-1886.37472562,0.00016548,2]
[401321114,1768134639922,-150.0,0.0001656,2]
[401321116,1768134639931,-500.0,0.00016578,2]
[401321118,1768134639940,-500.0,0.00016578,2]
[401321120,1768134639949,-500.0,0.00016578,2]
[401321122,1768134639958,-500.0,0.00016578,2]
[401321124,1768134639968,-500.0,0.00016578,2]
[401321126,1768134639977,-500.0,0.00016578,2]
[401321128,1768134639986,-500.0,0.00016578,2]
[401321130,1768134639995,-615.06251518,0.00016578,2]
[401321132,1768134640005,-500.0,0.00016585,2]
[401321134,1768134640015,-3240.0,0.00016585,2]
[401321136,1768134640023,-359.70734215,0.000166,2]
[401321138,1768134640033,-151.0,0.00016646,2]
[401321140,1768134640045,-151.0,0.00016646,2]
[401321142,1768134640056,-274.89,0.00016647,2]
[401321144,1768134640065,-999.0,0.00016656,3]
[401321146,1768134640075,-166.66,0.00016664,2]
[401321148,1768134640084,-500.0,0.00016665,2]
[401321150,1768134640093,-1886.37472562,0.00016717,2]
[401321152,1768134640103,-16744.67998272,0.00016777,2]
[401321154,1768134640113,-239.27383131,0.0001679,2]
[401321156,1768134640122,-122477.98591905,0.000168,2]
[401321158,1768134640132,-1886.37472562,0.00016886,2]
[401321160,1768134640141,-9682.24,0.00016892,2]
[401321162,1768134640151,-150.0,0.0001692,2]
[401321164,1768134640160,-224.22,0.00016929,2]
[401321166,1768134640169,-250.0,0.00016933,2]
[401321168,1768134640179,-150.0,0.0001695,2]
[401321170,1768134640188,-160.0,0.00017,2]
[401321172,1768134640198,-150.0,0.00017005,2]
[401321174,1768134640207,-1886.37472562,0.00017055,2]
[401321176,1768134640216,-150.0,0.0001706,2]
[401321178,1768134640226,-500.0,0.00017073,2]
[401321180,1768134640235,-500.0,0.00017073,2]
[401321182,1768134640245,-500.0,0.00017073,2]
[401321184,1768134640254,-500.0,0.00017073,2]
[401321186,1768134640263,-157.59274312,0.0001709,2]
[401321188,1768134640272,-322.6107,0.00017099,2]
[401321190,1768134640282,-620.0,0.00017099,2]
[401321192,1768134640291,-553.64373807,0.00017099,2]
[401321194,1768134640301,-578.20924308,0.00017099,2]
[401321196,1768134640311,-295.14499999,0.00017108,2]
[401321198,1768134640320,-150.0,0.00017114,2]
[401321200,1768134640330,-250.0,0.00017144,2]
[401321202,1768134640338,-173.19690873,0.00017144,2]
[401321204,1768134640348,-300.0,0.00017144,2]
[401321206,1768134640357,-150.0,0.00017169,2]
[401321208,1768134640366,-250.0,0.00017224,2]
[401321210,1768134640376,-1886.37472562,0.00017224,2]
[401321212,1768134640385,-150.0,0.0001728,2]
[401321215,1768134640395,-540.0,0.00017316,2]
[401321217,1768134640404,-5374.0,0.00017382,2]
[401321219,1768134640414,-1886.37472562,0.00017393,2]
[401321221,1768134640424,-1000.0,0.00017421,2]
[401321223,1768134640433,-2000.0,0.000175,2]
[401321224,1768134640443,-1601.60083457,0.000175,2]
[401321226,1768134640452,-529.03,0.00017534,2]
[401321228,1768134640462,-1886.37472562,0.00017562,2]
[401321230,1768134640471,-1680.0,0.0001758,2]
[401321233,1768134640480,-1000.0,0.00017621,2]
[401321234,1768134640490,-243.38858154,0.00017621,2]
[401321237,1768134640499,-1000.0,0.00017621,2]
[401321238,1768134640509,-1002.55051193,0.00017621,2]
[401321240,1768134640518,-150.0,0.0001764,2]
[401321242,1768134640528,-1212.30155644,0.0001764,2]
[401321244,1768134640536,-166.66,0.00017645,2]
[401321246,1768134640546,-574.12855637,0.00017647,2]
[401321248,1768134640556,-171.0,0.00017661,2]
[401321251,1768134640565,-780.16040122,0.000177,2]
[401321253,1768134640575,-1000.0,0.000177,2]
[401321254,1768134640584,-1000.0,0.00017723,2]
[401321257,1768134640595,-1000.0,0.00017728,2]
[401321259,1768134640604,-1000.0,0.00017729,2]
[401321260,1768134640613,-1886.37472562,0.00017731,2]
[401321262,1768134640622,-1000.0,0.00017741,2]
[401321264,1768134640630,-1000.0,0.00017755,2]
[401321266,1768134640640,-5374.0,0.0001776,2]
[401321268,1768134640649,-1000.0,0.00017767,2]
[401321270,1768134640658,-1000.0,0.00017791,2]
[401321272,1768134640667,-29220.0,0.00017794,2]
[401321274,1768134640676,-14440.20798762,0.000178,2]
[401321276,1768134640686,-1000.0,0.000178,2]
[401321277,1768134640695,-1000.0,0.00017806,2]
[401321278,1768134640704,-1000.0,0.00017811,2]
[401321279,1768134640714,-977.46698,0.0001782,2]
[401321280,1768134640723,-977.46699,0.0001782,2]
[401321281,1768134640732,-977.46698,0.0001782,2]
[401321282,1768134640741,-977.46699,0.0001782,2]
[401321283,1768134640750,-1000.0,0.00017826,2]
[401321284,1768134640760,-1000.0,0.00017828,2]
[401321285,1768134640769,-2201.92484839,0.0001783,2]
[401321286,1768134640778,-1000.0,0.00017849,2]
[401321288,1768134640788,-200.0,0.00017856,2]
[401321291,1768134640799,-224.22,0.0001787,2]
[401321293,1768134640809,-171.0,0.00017881,2]
[401321295,1768134640819,-1000.0,0.00017892,2]
[401321297,1768134640828,-1000.0,0.00017896,2]
[401321298,1768134640837,-1000.0,0.00017896,2]
[401321300,1768134640847,-209.58331388,0.00017898,2]
[401321301,1768134640857,-163.59,0.000179,2]
[401321303,1768134640866,-25000.0,0.000179,3]
[401321305,1768134640876,-1344.31,0.000179,2]
[401321307,1768134640885,-658.39211366,0.000179,3]
[401321309,1768134640895,-1886.37472562,0.000179,2]
[401321311,1768134640904,-263.23700998,0.000179,2]
[401321313,1768134640912,-263.23700987,0.000179,2]
[401321315,1768134640921,-263.23700987,0.000179,2]
[401321317,1768134640930,-263.23700987,0.000179,2]
[401321319,1768134640939,-341.09361904,0.000179,3]
[401321321,1768134640948,-263.23700987,0.000179,2]
[401321323,1768134640958,-263.23700987,0.000179,2]
[401321325,1768134640967,-263.23700987,0.000179,2]
[401321327,1768134640976,-263.23700987,0.000179,2]
[401321329,1768134640985,-263.23700987,0.000179,2]
[401321331,1768134640994,-263.23700987,0.000179,2]
[401321333,1768134641003,-263.23700987,0.000179,2]
[401321335,1768134641012,-263.23700987,0.000179,2]
[401321337,1768134641021,-263.23700987,0.000179,2]
[401321339,1768134641030,-263.23700987,0.000179,2]
[401321341,1768134641039,-263.23700987,0.000179,2]
[401321343,1768134641048,-1000.0,0.000179,2]
[401321345,1768134641058,-263.23700987,0.000179,2]
[401321346,1768134641067,-500.0,0.000179,2]
[401321348,1768134641076,-500.0,0.000179,2]
[401321351,1768134641086,-500.0,0.000179,2]
[401321352,1768134641095,-500.0,0.000179,2]
[401321355,1768134641105,-500.0,0.000179,2]
[401321357,1768134641114,-500.0,0.000179,2]
[401321358,1768134641124,-500.0,0.000179,2]
[401321360,1768134641134,-500.0,0.000179,2]
[401321363,1768134641143,-500.0,0.000179,2]
[401321364,1768134641153,-500.0,0.000179,2]
[401321366,1768134641163,-500.0,0.000179,2]
[401321368,1768134641172,-500.0,0.000179,2]
[401321371,1768134641182,-500.0,0.000179,2]
[401321372,1768134641194,-500.0,0.000179,2]
[401321374,1768134641203,-500.0,0.000179,2]
[401321376,1768134641213,-500.0,0.000179,2]
[401321378,1768134641222,-500.0,0.000179,2]
[401321380,1768134641231,-9382.0,0.000179,2]
[401321382,1768134641267,-1000.0,0.00017901,2]
[401321384,1768134641277,-1000.0,0.00017941,2]
[401321386,1768134641286,-1000.0,0.00017946,2]
[401321388,1768134641296,-1000.0,0.00017948,2]
[401321390,1768134641305,-500.0,0.00017973,2]
[401321392,1768134641314,-1000.0,0.00017974,2]
[401321394,1768134641323,-1000.0,0.00017983,2]
[401321396,1768134641333,-500.0,0.00017997,2]
[401321398,1768134641345,-174.1373823,0.00017997,2]
[401321400,1768134641356,-150.0,0.00017997,2]
[401321403,1768134641365,-628938.5513572,0.00017998,2]
[401321404,1768134641374,-8681.6696549,0.00017998,2]
[401321406,1768134641384,-1857.4709997,0.00017998,2]
[401321408,1768134641395,-125345.3264029,0.00017998,2]
[401321410,1768134641404,-5946.449543,0.00017998,2]
[401321412,1768134641413,-11817.2425789,0.00017998,2]
[401321414,1768134641423,-309.5327868,0.00017998,2]
[401321416,1768134641432,-166.9455236,0.00017999,2]
[401321418,1768134641440,-300.0,0.00017999,2]
[401321420,1768134641449,-300.0,0.00017999,2]
[401321422,1768134641459,-6474.7929339,0.00017999,2]
[401321424,1768134641468,-300.0,0.00017999,2]
[401321426,1768134641477,-548.49326873,0.00017999,2]
[401321428,1768134641486,-150.0,0.00018,2]
[401321430,1768134641495,-1194124.40039107,0.00018,2]
[401321432,1768134641504,-151.0738,0.00018,2]
[401321434,1768134641514,-150.0,0.00018,2]
[401321436,1768134641523,-150.0,0.00018,2]
[401321438,1768134641533,-2037.61313173,0.00018,2]
[401321440,1768134641542,-150.0,0.00018,2]
[401321442,1768134641551,-1384.9853452,0.00018,2]
[401321444,1768134641561,-766084.29779195,0.00018,2]
[401321759,1768134644551,-151.0,0.00016667,2]
[401321761,1768134644561,-126.57274271,0.00016667,2]
[401321763,1768134644572,-24.42725729,0.00016667,2]
[401321765,1768134644581,-252.52116347,0.000179,2]
[401321767,1768134644593,-10.7158464,0.000179,2]
[401321769,1768134644601,-305.9427532,0.00018,2]
[401321840,1768134645366,-388.41240471,0.00018,2]
[401321852,1768134645478,-595.26490167,0.00018,2]
[401321864,1768134645588,-2222.05461712,0.00018,2]
[401321872,1768134645646,-6260.75309609,0.00018,2]
[401321874,1768134645658,-3462.23077405,0.00018,2]
[401321876,1768134645670,-792.29515958,0.00018,2]
[401322190,1768134883210,155.87,8.309e-05,2]
[401322191,1768134883412,155.87,9.905e-05,2]
[401322192,1768134883635,155.87,0.00011502,2]
[401322193,1768134883851,155.87,0.00013098,2]
[401322194,1768134885246,155.87,0.00014695,2]
[401322196,1768134894309,-300.0,0.00015899,5]
[401322228,1768135558401,4272.42,0.00015296,2]
[401322229,1768135600981,1890.54627534,0.00015014,2]
[401322230,1768135798033,-157.59274312,0.00015544,2]
[401322231,1768135798055,-34.68043786,0.00015544,2]
[401322232,1768135819219,200.0,0.00015057,2]
[401322234,1768135831569,-122.91230526,0.00015544,2]
[401322235,1768135831579,-250.0,0.00015594,2]
[401322236,1768135831588,-192.27,0.00015624,2]
[401322237,1768135831598,-1200.0,0.00015643,2]
[401322238,1768135831608,-300.0,0.00015643,2]
[401322239,1768135831617,-2437.89570181,0.00015644,2]
[401322240,1768135831633,-617.6674,0.00015644,2]
[401322241,1768135831645,-450.72894432,0.00015644,2]
[401322242,1768135831687,-837.04274692,0.00015644,2]
[401322243,1768135831697,-161.95725308,0.00015644,2]
[401322244,1768135831799,-1372.97586918,0.00015644,2]
[401322247,1768135837730,-500.0,0.00015643,2]
[401322248,1768135837740,-158.81106317,0.00015643,2]
[401322249,1768135837750,-201.26356055,0.00015643,2]
[401322250,1768135837760,-1613.06036803,0.00015644,2]
[401322251,1768135837787,-637.70964098,0.00015644,2]
[401322252,1768135837798,-20809.26981631,0.00015644,2]
[401322253,1768135837809,-4236.0,0.00015644,2]
[401322254,1768135837849,-899.21,0.00015644,2]
[401322255,1768135837861,-10791.1348134,0.00015644,2]
[401322256,1768135837914,-881.42399107,0.00015644,2]
[401322257,1768135837967,-459.46415565,0.00015644,2]
[401322428,1768135839860,-1553.73338953,0.00015644,2]
[401322430,1768135839871,-419.77238971,0.00015644,2]
[401322432,1768135839882,-902.0,0.00015644,2]
[401322436,1768135839913,-655.28295906,0.00015644,2]
[401322438,1768135839924,-310.56286428,0.00015644,2]
[401322440,1768135839935,-616.65216662,0.00015644,2]
[401322445,1768135839971,-252956.07165223,0.00015644,2]
[401322447,1768135839980,-600.0,0.00015644,2]
[401322449,1768135839989,-7065.33596389,0.00015644,2]
[401322451,1768135839998,-9978.36306396,0.00015644,2]
[401322453,1768135840008,-12911.7879,0.00015644,2]
[401322455,1768135840020,-805.06980042,0.00015699,2]
[401322457,1768135840029,-150.0,0.00015699,2]
[401322459,1768135840038,-177.16136204,0.00015699,2]
[401322461,1768135840047,-239.27383131,0.00015789,2]
[401322463,1768135840056,-1000000.0,0.00015799,2]
[401322465,1768135840069,-2500.0,0.00015799,2]
[401322467,1768135840078,-2239.94970194,0.00015809,2]
[401322469,1768135840087,-202.27919226,0.0001589,2]
[401322471,1768135840096,-151.0,0.0001589,2]
[401322473,1768135840105,-151.0,0.0001589,2]
[401322475,1768135840115,-151.0,0.0001589,2]
[401322477,1768135840124,-151.0,0.0001589,2]
[401322479,1768135840133,-151.0,0.0001589,2]
[401322481,1768135840142,-151.0,0.0001589,2]
[401322483,1768135840151,-235.01688217,0.0001589,2]
[401322485,1768135840161,-1167.66845712,0.00015899,5]
[401322487,1768135840171,-191.07861083,0.00015909,2]
[401322489,1768135840179,-1000.0,0.00015918,2]
[401322491,1768135840188,-805.06980038,0.00015944,2]
[401322493,1768135840198,-2239.94970189,0.00016041,2]
[401322495,1768135840207,-9999.99,0.00016116,2]
[401322497,1768135840216,-805.06980038,0.00016188,2]
[401322499,1768135840225,-150.0,0.000162,2]
[401322501,1768135840234,-150.0,0.00016203,2]
[401322503,1768135840243,-150.0,0.00016209,2]
[401322505,1768135840253,-2532.76,0.0001623,2]
[401322507,1768135840261,-150.0,0.00016258,2]
[401322509,1768135840271,-2239.94970189,0.00016274,2]
[401322511,1768135840280,-574.87,0.00016284,2]
[401322513,1768135840289,-155.87,0.00016291,2]
[401322515,1768135840298,-150.0,0.00016313,2]
[401322518,1768135840308,-500.0,0.00016313,2]
[401322521,1768135840317,-150.0,0.00016367,2]
[401322524,1768135840326,-500.0,0.00016377,2]
[401322526,1768135840335,-500.0,0.00016377,2]
[401322528,1768135840345,-500.0,0.00016377,2]
[401322530,1768135840356,-615.06251518,0.00016377,2]
[401322532,1768135840365,-512.90817352,0.00016377,2]
[401322534,1768135840374,-1000.0,0.00016378,2]
[401322536,1768135840383,-150.0,0.00016422,2]
[401322538,1768135840392,-805.06980038,0.00016433,2]
[401322540,1768135840401,-389.48512062,0.00016438,2]
[401322542,1768135840411,-636.42,0.00016438,5]
[401322544,1768135840420,-800.0,0.00016438,2]
[401322546,1768135840429,-888.0,0.00016438,2]
[401322548,1768135840438,-226.62,0.00016438,2]
[401322550,1768135840447,-250.0,0.00016477,2]
[401322552,1768135840456,-500.0,0.00016477,2]
[401322554,1768135840465,-500.0,0.00016477,2]
[401322556,1768135840474,-500.0,0.00016477,2]
[401322558,1768135840483,-500.0,0.00016477,2]
[401322560,1768135840492,-535.89319473,0.00016477,2]
[401322562,1768135840502,-500.0,0.00016477,2]
[401322564,1768135840514,-519.66992392,0.00016477,2]
[401322566,1768135840524,-500.0,0.00016477,2]
[401322568,1768135840534,-500.0,0.00016477,2]
[401322570,1768135840543,-500.0,0.00016477,2]
[401322572,1768135840552,-500.0,0.00016477,2]
[401322574,1768135840562,-2239.94970189,0.00016506,2]
[401322576,1768135840571,-1000.0,0.00016515,2]
[401322578,1768135840580,-150.0,0.0001656,2]
[401322580,1768135840590,-805.06980038,0.00016677,2]
[401322582,1768135840599,-158.73,0.00016712,2]
[401322584,1768135840610,-157.59274312,0.00016722,2]
[401322586,1768135840620,-2239.94970189,0.00016738,2]
[401322588,1768135840630,-500.0,0.00016799,2]
[401322590,1768135840639,-274.89,0.00016831,2]
[401322592,1768135840647,-150.0,0.0001692,2]
[401322594,1768135840657,-805.06980038,0.00016922,2]
[401322596,1768135840666,-500.0,0.00016959,2]
[401322598,1768135840675,-2239.94970189,0.00016971,2]
[401322600,1768135840684,-2000.0,0.00017,2]
[401322602,1768135840694,-1000.0,0.00017,2]
[401322604,1768135840704,-500.0,0.00017073,2]
[401322606,1768135840713,-500.0,0.00017073,2]
[401322608,1768135840722,-500.0,0.00017073,2]
[401322610,1768135840732,-500.0,0.00017073,2]
[401322611,1768135840741,-250.0,0.00017098,2]
[401322612,1768135840750,-322.6107,0.00017099,2]
[401322613,1768135840759,-578.20924308,0.00017099,2]
[401322614,1768135840768,-620.0,0.00017099,2]
[401322615,1768135840777,-553.64373807,0.00017099,2]
[401322616,1768135840787,-420.0,0.00017109,2]
[401322646,1768135841071,-1000.0,0.00017112,2]
[401322649,1768135841101,-805.06980038,0.00017166,2]
[401322651,1768135841111,-200.0,0.00017174,2]
[401322653,1768135841120,-250.0,0.00017178,2]
[401322654,1768135841129,-1680.0,0.00017195,2]
[401322656,1768135841139,-2239.94970189,0.00017203,2]
[401322659,1768135841148,-600.0,0.00017208,2]
[401322661,1768135841158,-150.0,0.0001728,2]
[401322662,1768135841167,-2326.0,0.00017324,2]
[401322664,1768135841176,-295.14499999,0.00017379,2]
[401322666,1768135841185,-805.06980038,0.00017411,2]
[401322668,1768135841194,-2239.94970189,0.00017435,2]
[401322671,1768135841204,-150.52,0.0001744,2]
[401322673,1768135841213,-150.0,0.0001744,2]
[401322675,1768135841222,-2326.0,0.00017453,2]
[401322677,1768135841232,-150.0,0.00017478,2]
[401322679,1768135841241,-970.0,0.00017483,2]
[401322681,1768135841251,-2000.0,0.000175,2]
[401322683,1768135841260,-970.0,0.00017529,2]
[401322685,1768135841270,-500.0,0.00017562,2]
[401322687,1768135841279,-970.0,0.00017593,2]
[401322689,1768135841288,-1000.0,0.00017621,2]
[401322691,1768135841297,-243.38858154,0.00017621,2]
[401322693,1768135841306,-1002.55051193,0.00017621,2]
[401322695,1768135841315,-1000.0,0.00017621,2]
[401322697,1768135841324,-150.0,0.0001764,2]
[401322699,1768135841333,-1212.30155644,0.0001764,2]
[401322700,1768135841342,-574.12855637,0.00017647,2]
[401322702,1768135841352,-805.06980038,0.00017655,2]
[401322705,1768135841361,-2239.94970189,0.00017668,2]
[401322706,1768135841370,-1000.0,0.000177,2]
[401322709,1768135841380,-1000.0,0.00017709,2]
[401322711,1768135841389,-1000.0,0.00017744,2]
[401322713,1768135841398,-970.0,0.0001775,2]
[401322715,1768135841407,-1000.0,0.00017775,2]
[401322717,1768135841417,-1000.0,0.00017776,2]
[401322719,1768135841426,-1000.0,0.00017776,2]
[401322721,1768135841436,-1000.0,0.00017788,2]
[401322723,1768135841445,-1000.0,0.00017795,2]
[401322725,1768135841455,-1000.0,0.00017802,2]
[401322727,1768135841464,-1000.0,0.00017808,2]
[401322729,1768135841473,-1000.0,0.0001782,2]
[401322731,1768135841483,-390.98679,0.0001782,2]
[401322733,1768135841494,-390.98679,0.0001782,2]
[401322735,1768135841504,-2201.92484839,0.0001783,2]
[401322737,1768135841514,-390.9868,0.0001783,2]
[401322739,1768135841524,-1000.0,0.00017853,2]
[401322741,1768135841533,-200.0,0.00017856,2]
[401322743,1768135841542,-1000.0,0.00017859,2]
[401322745,1768135841552,-390.98679,0.0001786,2]
[401322747,1768135841562,-1000.0,0.00017864,2]
[401322749,1768135841571,-1000.0,0.00017869,2]
[401322752,1768135841582,-1000.0,0.00017874,2]
[401322754,1768135841592,-1000.0,0.00017875,2]
[401322756,1768135841601,-390.9868,0.0001788,2]
[401322758,1768135841611,-1000.0,0.00017885,2]
[401322760,1768135841621,-25000.0,0.00017891,3]
[401322762,1768135841630,-25000.0,0.000179,3]
[401322764,1768135841639,-1000.0,0.000179,2]
[401322766,1768135841648,-2239.94970189,0.000179,2]
[401322768,1768135841657,-250.07515938,0.000179,2]
[401322769,1768135841667,-250.07515938,0.000179,2]
[401322771,1768135841676,-250.07515938,0.000179,2]
[401322773,1768135841685,-250.07515938,0.000179,2]
[401322776,1768135841694,-22054.87285308,0.000179,3]
[401322777,1768135841704,-805.06980038,0.000179,2]
[401322779,1768135841713,-1141.06272098,0.000179,2]
[401322782,1768135841724,-1344.31,0.000179,2]
[401322784,1768135841733,-500.0,0.000179,2]
[401322785,1768135841743,-500.0,0.000179,2]
[401322788,1768135841752,-500.0,0.000179,2]
[401322789,1768135841761,-500.0,0.000179,2]
[401322791,1768135841769,-500.0,0.000179,2]
[401322793,1768135841779,-500.0,0.000179,2]
[401322795,1768135841787,-500.0,0.000179,2]
[401322797,1768135841796,-500.0,0.000179,2]
[401322799,1768135841805,-500.0,0.000179,2]
[401322801,1768135841815,-500.0,0.000179,2]
[401322803,1768135841825,-500.0,0.000179,2]
[401322805,1768135841835,-500.0,0.000179,2]
[401322807,1768135841845,-500.0,0.000179,2]
[401322809,1768135841854,-500.0,0.000179,2]
[401322811,1768135841864,-500.0,0.000179,2]
[401322812,1768135841873,-500.0,0.000179,2]
[401322813,1768135841882,-500.0,0.000179,2]
[401322814,1768135841892,-9383.0,0.000179,2]
[401322815,1768135841903,-390.98679,0.0001791,2]
[401322816,1768135841912,-1000.0,0.00017956,2]
[401322817,1768135841921,-1000.0,0.0001796,2]
[401322818,1768135841931,-580.06004034,0.00017973,2]
[401322819,1768135841940,-500.0,0.00017973,2]
[401322820,1768135841950,-1000.0,0.00017981,2]
[401322821,1768135841959,-970.0,0.00017991,2]
[401322822,1768135841968,-1000.0,0.00017996,2]